[Event "Early-Titled-Tuesday-Blitz-April-23-2024"]
[Site "Chess.com"]
[Date "2024.04.23"]
[Round "2"]
[White "Smoking_Crow"]
[Black "Polish_fighter3000"]
[Result "0-1"]
[WhiteElo "2662"]
[BlackElo "3104"]
[TimeControl "180+1"]
[EndTime "8:15:30 PDT"]
[Termination "Polish_fighter3000 won by resignation"]

1. e4 {[%clk 0:03:00.9]} 1... e6 {[%clk 0:02:57.5]} 2. d4 {[%clk 0:03:00.4]}
2... c5 {[%clk 0:02:58.1]} 3. Nf3 {[%clk 0:02:59.1]} 3... cxd4 {[%clk
0:02:56.3]} 4. Nxd4 {[%clk 0:03:00]} 4... Nc6 {[%clk 0:02:50.6]} 5. Nc3 {[%clk
0:02:59.8]} 5... d6 {[%clk 0:02:51.1]} 6. Be3 {[%clk 0:02:59.2]} 6... Nf6 {[%clk
0:02:50.1]} 7. f3 {[%clk 0:02:59]} 7... Be7 {[%clk 0:02:49.5]} 8. Qd2 {[%clk
0:02:59.4]} 8... O-O {[%clk 0:02:47.7]} 9. O-O-O {[%clk 0:02:59.2]} 9... d5
{[%clk 0:02:40.8]} 10. exd5 {[%clk 0:02:57.8]} 10... Nxd5 {[%clk 0:02:41.7]} 11.
Nxd5 {[%clk 0:02:41.9]} 11... Qxd5 {[%clk 0:02:42.6]} 12. Nb3 {[%clk 0:02:41.7]}
12... Nb4 {[%clk 0:02:19.1]} 13. Qxd5 {[%clk 0:02:23]} 13... Nxd5 {[%clk
0:02:20]} 14. Bd2 {[%clk 0:02:22.7]} 14... b6 {[%clk 0:02:18.3]} 15. Bc4 {[%clk
0:02:20.3]} 15... Bb7 {[%clk 0:02:17.9]} 16. Kb1 {[%clk 0:02:17.1]} 16... Rac8
{[%clk 0:02:17.1]} 17. Bd3 {[%clk 0:02:17]} 17... Rfd8 {[%clk 0:02:16.2]} 18. a3
{[%clk 0:02:15.8]} 18... h5 {[%clk 0:02:14.9]} 19. Rhe1 {[%clk 0:02:11.6]} 19...
h4 {[%clk 0:02:14]} 20. h3 {[%clk 0:02:11.2]} 20... Bf6 {[%clk 0:01:52]} 21. Be4
{[%clk 0:02:05.7]} 21... g6 {[%clk 0:01:51.2]} 22. Bc1 {[%clk 0:02:04.7]} 22...
Kg7 {[%clk 0:01:50.1]} 23. c3 {[%clk 0:01:49.7]} 23... Bxc3 {[%clk 0:01:41.3]}
24. bxc3 {[%clk 0:01:18.3]} 24... Nxc3+ {[%clk 0:01:40.6]} 25. Ka1 {[%clk
0:01:13.3]} 25... Rxd1 {[%clk 0:01:17.4]} 26. Bxb7 {[%clk 0:01:08.4]} 26... Rxe1
{[%clk 0:01:17.1]} 27. Bxc8 {[%clk 0:01:08.7]} 27... Ne2 {[%clk 0:01:17.7]} 28.
Kb2 {[%clk 0:01:08.5]} 28... Nxc1 {[%clk 0:01:17.1]} 29. Nxc1 {[%clk 0:01:09.4]}
29... Rg1 {[%clk 0:01:17.5]} 30. Kc3 {[%clk 0:01:08.6]} 30... Rxc1+ {[%clk
0:01:17.1]} 0-1

[Event "Early-Titled-Tuesday-Blitz-April-23-2024"]
[Site "Chess.com"]
[Date "2024.04.23"]
[Round "2"]
[White "Golubovsky"]
[Black "Evgeny81"]
[Result "0-1"]
[WhiteElo "2502"]
[BlackElo "2784"]
[TimeControl "180+1"]
[EndTime "8:15:33 PDT"]
[Termination "Evgeny81 won on time"]

1. c4 {[%clk 0:00:53.5]} 1... e6 {[%clk 0:02:58.6]} 2. Nc3 {[%clk 0:00:51.9]}
2... d5 {[%clk 0:02:59]} 3. d4 {[%clk 0:00:49]} 3... c6 {[%clk 0:02:59.2]} 4. e3
{[%clk 0:00:45.2]} 4... Nf6 {[%clk 0:02:57.6]} 5. Nf3 {[%clk 0:00:44.9]} 5...
Nbd7 {[%clk 0:02:55.9]} 6. Bd3 {[%clk 0:00:44.2]} 6... dxc4 {[%clk 0:02:55.3]}
7. Bxc4 {[%clk 0:00:44.4]} 7... b5 {[%clk 0:02:56]} 8. Bb3 {[%clk 0:00:44.5]}
8... a6 {[%clk 0:02:54.7]} 9. O-O {[%clk 0:00:44.2]} 9... Bb7 {[%clk 0:02:55.1]}
10. Qe2 {[%clk 0:00:43.9]} 10... c5 {[%clk 0:02:55.3]} 11. Rd1 {[%clk
0:00:38.9]} 11... Qc7 {[%clk 0:02:46]} 12. e4 {[%clk 0:00:33.4]} 12... cxd4
{[%clk 0:02:44.8]} 13. Nxd4 {[%clk 0:00:31.8]} 13... Bd6 {[%clk 0:02:44.3]} 14.
g3 {[%clk 0:00:29.6]} 14... Bc5 {[%clk 0:02:21.3]} 15. Bg5 {[%clk 0:00:15.2]}
15... O-O {[%clk 0:02:17.9]} 16. Rac1 {[%clk 0:00:14.1]} 16... Qb6 {[%clk
0:02:15.9]} 17. Nf3 {[%clk 0:00:10.3]} 17... h6 {[%clk 0:02:08.6]} 18. Bf4
{[%clk 0:00:09.1]} 18... Rad8 {[%clk 0:01:59.1]} 19. e5 {[%clk 0:00:04.5]} 19...
Ng4 {[%clk 0:01:59.6]} 20. Rf1 {[%clk 0:00:01.3]} 20... Qc6 {[%clk 0:01:56.2]}
0-1

[Event "Early-Titled-Tuesday-Blitz-April-23-2024"]
[Site "Chess.com"]
[Date "2024.04.23"]
[Round "2"]
[White "northridgehawk"]
[Black "DumbKing75"]
[Result "0-1"]
[WhiteElo "2340"]
[BlackElo "2641"]
[TimeControl "180+1"]
[EndTime "8:15:37 PDT"]
[Termination "DumbKing75 won by resignation"]

1. e4 {[%clk 0:03:00.9]} 1... c5 {[%clk 0:02:58.5]} 2. Nf3 {[%clk 0:03:00.8]}
2... a6 {[%clk 0:02:56]} 3. c4 {[%clk 0:03:00.1]} 3... Nc6 {[%clk 0:02:49]} 4.
d4 {[%clk 0:02:59.7]} 4... cxd4 {[%clk 0:02:49.9]} 5. Nxd4 {[%clk 0:03:00.4]}
5... Nf6 {[%clk 0:02:49.9]} 6. Nc3 {[%clk 0:03:00.2]} 6... e5 {[%clk 0:02:50.2]}
7. Nc2 {[%clk 0:02:59.3]} 7... Bc5 {[%clk 0:02:49.6]} 8. Bd3 {[%clk 0:02:58.8]}
8... O-O {[%clk 0:02:49.5]} 9. O-O {[%clk 0:02:59.2]} 9... d6 {[%clk 0:02:49.1]}
10. Bg5 {[%clk 0:02:58.8]} 10... h6 {[%clk 0:02:45.6]} 11. Bh4 {[%clk
0:02:58.6]} 11... Be6 {[%clk 0:02:45.8]} 12. Qd2 {[%clk 0:02:57]} 12... Nd4
{[%clk 0:02:33.7]} 13. Ne3 {[%clk 0:02:55.5]} 13... Rc8 {[%clk 0:02:17.5]} 14.
Rad1 {[%clk 0:02:54.4]} 14... Nxe4 {[%clk 0:01:32.6]} 15. Nxe4 {[%clk
0:02:40.1]} 15... Qxh4 {[%clk 0:01:32.1]} 16. Nxc5 {[%clk 0:02:38]} 16... dxc5
{[%clk 0:01:28.2]} 17. b3 {[%clk 0:02:29.2]} 17... Rcd8 {[%clk 0:01:20.4]} 18.
Qc3 {[%clk 0:02:26.2]} 18... e4 {[%clk 0:01:17.3]} 19. Nc2 {[%clk 0:01:58.3]}
19... exd3 {[%clk 0:00:59.8]} 20. Nxd4 {[%clk 0:01:52.8]} 20... Qxd4 {[%clk
0:01:00.6]} 21. Qd2 {[%clk 0:01:48.4]} 21... Rfe8 {[%clk 0:00:56.8]} 22. Rde1
{[%clk 0:01:36.5]} 22... Bf5 {[%clk 0:00:54]} 23. Re3 {[%clk 0:01:36.6]} 23...
Rxe3 {[%clk 0:00:53.3]} 24. fxe3 {[%clk 0:01:37.5]} 24... Qe4 {[%clk 0:00:53.1]}
25. Rf4 {[%clk 0:01:37]} 25... Qe5 {[%clk 0:00:53.7]} 26. g3 {[%clk 0:01:36.6]}
26... Bh3 {[%clk 0:00:47.7]} 27. Kf2 {[%clk 0:01:35.5]} 27... Qa1 {[%clk
0:00:46.9]} 28. Qe1 {[%clk 0:01:30.4]} 28... Qb2+ {[%clk 0:00:41.7]} 0-1

[Event "Early-Titled-Tuesday-Blitz-April-23-2024"]
[Site "Chess.com"]
[Date "2024.04.23"]
[Round "2"]
[White "ViktoriyaTarasova"]
[Black "sonicdravise"]
[Result "0-1"]
[WhiteElo "2364"]
[BlackElo "2620"]
[TimeControl "180+1"]
[EndTime "8:15:41 PDT"]
[Termination "sonicdravise won on time"]

1. d4 {[%clk 0:03:00.9]} 1... g6 {[%clk 0:02:58]} 2. c4 {[%clk 0:03:00.1]} 2...
Bg7 {[%clk 0:02:58.7]} 3. e4 {[%clk 0:03:00.6]} 3... d6 {[%clk 0:02:58.5]} 4.
Nc3 {[%clk 0:03:00.3]} 4... e5 {[%clk 0:02:58.3]} 5. Nge2 {[%clk 0:02:57.8]}
5... Nc6 {[%clk 0:02:53.6]} 6. Be3 {[%clk 0:02:57.1]} 6... exd4 {[%clk
0:02:52.4]} 7. Nxd4 {[%clk 0:02:57.1]} 7... Nge7 {[%clk 0:02:52.1]} 8. h4 {[%clk
0:02:53.8]} 8... O-O {[%clk 0:02:50.7]} 9. h5 {[%clk 0:02:53.5]} 9... f5 {[%clk
0:02:49.6]} 10. Nxc6 {[%clk 0:02:51.8]} 10... bxc6 {[%clk 0:02:47.2]} 11. Qd2
{[%clk 0:02:49.8]} 11... fxe4 {[%clk 0:02:40.6]} 12. hxg6 {[%clk 0:02:48.9]}
12... Nxg6 {[%clk 0:02:38.2]} 13. Nxe4 {[%clk 0:02:37]} 13... Qe7 {[%clk
0:02:37.3]} 14. Ng5 {[%clk 0:02:30.5]} 14... Rb8 {[%clk 0:02:23.8]} 15. Rb1
{[%clk 0:00:46.7]} 15... Bf5 {[%clk 0:02:21.7]} 16. Bd3 {[%clk 0:00:45.2]} 16...
h6 {[%clk 0:02:11.3]} 17. Nf3 {[%clk 0:00:43]} 17... Bxd3 {[%clk 0:02:03.9]} 18.
Qxd3 {[%clk 0:00:42.7]} 18... Nf4 {[%clk 0:02:04.7]} 19. Qf1 {[%clk 0:00:16.7]}
19... Qe4 {[%clk 0:02:01.8]} 20. Kd2 {[%clk 0:00:11.4]} 20... Bxb2 {[%clk
0:01:54.2]} 21. Rxh6 {[%clk 0:00:03.5]} 21... Bc3+ {[%clk 0:01:54.1]} 22. Kxc3
{[%clk 0:00:03.9]} 22... Rxb1 {[%clk 0:01:54.4]} 0-1

[Event "Early-Titled-Tuesday-Blitz-April-23-2024"]
[Site "Chess.com"]
[Date "2024.04.23"]
[Round "2"]
[White "praveenb2002"]
[Black "ACollins05"]
[Result "1-0"]
[WhiteElo "2896"]
[BlackElo "2518"]
[TimeControl "180+1"]
[EndTime "8:15:43 PDT"]
[Termination "praveenb2002 won by checkmate"]

1. c4 {[%clk 0:03:00.9]} 1... a6 {[%clk 0:02:55]} 2. Nc3 {[%clk 0:02:58.6]} 2...
e6 {[%clk 0:02:45.4]} 3. Nf3 {[%clk 0:02:58.3]} 3... c5 {[%clk 0:02:38.7]} 4. g3
{[%clk 0:02:52.4]} 4... Nf6 {[%clk 0:02:37.8]} 5. Bg2 {[%clk 0:02:52.9]} 5...
Nc6 {[%clk 0:02:35.8]} 6. O-O {[%clk 0:02:53]} 6... Be7 {[%clk 0:02:35]} 7. d4
{[%clk 0:02:50.8]} 7... cxd4 {[%clk 0:02:34.5]} 8. Nxd4 {[%clk 0:02:51.7]} 8...
O-O {[%clk 0:02:31.1]} 9. b3 {[%clk 0:02:51.8]} 9... Qc7 {[%clk 0:02:24.8]} 10.
Bb2 {[%clk 0:02:52.1]} 10... b6 {[%clk 0:02:25.2]} 11. Rc1 {[%clk 0:02:50.3]}
11... Bb7 {[%clk 0:02:25.4]} 12. Nd5 {[%clk 0:02:42.7]} 12... exd5 {[%clk
0:02:21.1]} 13. cxd5 {[%clk 0:02:43.6]} 13... Rfd8 {[%clk 0:02:14.8]} 14. Nf5
{[%clk 0:02:28.2]} 14... Bf8 {[%clk 0:02:15]} 15. Bxf6 {[%clk 0:02:05.9]} 15...
gxf6 {[%clk 0:02:15.9]} 16. e3 {[%clk 0:02:06.3]} 16... Qe5 {[%clk 0:02:00]} 17.
Qg4+ {[%clk 0:02:06.1]} 17... Kh8 {[%clk 0:01:59.8]} 18. dxc6 {[%clk 0:02:06.3]}
18... dxc6 {[%clk 0:01:58.3]} 19. Bxc6 {[%clk 0:02:06.7]} 19... Bxc6 {[%clk
0:01:49.3]} 20. Rxc6 {[%clk 0:02:07.6]} 20... Rd5 {[%clk 0:01:48.3]} 21. e4
{[%clk 0:02:01.7]} 21... Rc5 {[%clk 0:01:40.8]} 22. Rxb6 {[%clk 0:01:48.9]}
22... Rd8 {[%clk 0:01:39.2]} 23. Rxa6 {[%clk 0:01:41.1]} 23... Rc2 {[%clk
0:01:32.3]} 24. Ra7 {[%clk 0:01:33.9]} 24... Qe6 {[%clk 0:01:15.9]} 25. Re7
{[%clk 0:01:30.6]} 25... Qa6 {[%clk 0:01:00.2]} 26. Rxf7 {[%clk 0:01:27.7]}
26... Qa3 {[%clk 0:00:57.3]} 27. Ne7 {[%clk 0:01:13.9]} 27... Bh6 {[%clk
0:00:47.1]} 28. Rxh7+ {[%clk 0:01:13.7]} 28... Kxh7 {[%clk 0:00:46.8]} 29. Qg6+
{[%clk 0:01:14.3]} 29... Kh8 {[%clk 0:00:47]} 30. Qxh6# {[%clk 0:01:15.1]} 1-0

[Event "Early-Titled-Tuesday-Blitz-April-23-2024"]
[Site "Chess.com"]
[Date "2024.04.23"]
[Round "2"]
[White "Sasha_Solovev_777"]
[Black "Manukyan_Artak"]
[Result "1-0"]
[WhiteElo "2219"]
[BlackElo "2473"]
[TimeControl "180+1"]
[EndTime "8:15:44 PDT"]
[Termination "Sasha_Solovev_777 won by resignation"]

1. e4 {[%clk 0:02:58]} 1... c6 {[%clk 0:03:00.1]} 2. d4 {[%clk 0:02:57.1]} 2...
d5 {[%clk 0:03:01]} 3. Nc3 {[%clk 0:02:57.4]} 3... dxe4 {[%clk 0:03:01.3]} 4.
Nxe4 {[%clk 0:02:57.8]} 4... Nf6 {[%clk 0:03:02.2]} 5. Nxf6+ {[%clk 0:02:57.8]}
5... exf6 {[%clk 0:03:03.1]} 6. c3 {[%clk 0:02:58.4]} 6... Bd6 {[%clk 0:03:04]}
7. Bd3 {[%clk 0:02:58.7]} 7... O-O {[%clk 0:03:04.9]} 8. Qc2 {[%clk 0:02:59.2]}
8... h5 {[%clk 0:03:05]} 9. Ne2 {[%clk 0:02:59]} 9... Qc7 {[%clk 0:03:05.2]} 10.
Be3 {[%clk 0:02:57.8]} 10... c5 {[%clk 0:03:04.9]} 11. dxc5 {[%clk 0:02:39.6]}
11... Bxc5 {[%clk 0:03:04.5]} 12. Bxc5 {[%clk 0:02:39.8]} 12... Qxc5 {[%clk
0:03:05.4]} 13. O-O {[%clk 0:02:40.1]} 13... Nc6 {[%clk 0:03:04.8]} 14. b4
{[%clk 0:02:20.8]} 14... Qg5 {[%clk 0:03:01.5]} 15. Qc1 {[%clk 0:02:15.1]} 15...
Ne5 {[%clk 0:02:57.4]} 16. Qxg5 {[%clk 0:02:11.9]} 16... fxg5 {[%clk 0:02:57.2]}
17. Be4 {[%clk 0:02:12.3]} 17... a5 {[%clk 0:02:53.2]} 18. a3 {[%clk 0:02:09]}
18... f5 {[%clk 0:02:47.3]} 19. Bd5+ {[%clk 0:02:08.7]} 19... Kh7 {[%clk
0:02:46.8]} 20. c4 {[%clk 0:02:06.3]} 20... f4 {[%clk 0:02:08.9]} 21. Nd4 {[%clk
0:01:54.7]} 21... axb4 {[%clk 0:02:01.4]} 22. axb4 {[%clk 0:01:54.2]} 22... Rxa1
{[%clk 0:02:02.2]} 23. Rxa1 {[%clk 0:01:54.7]} 23... Nd3 {[%clk 0:02:03.1]} 24.
b5 {[%clk 0:01:50.5]} 24... Nc5 {[%clk 0:01:52.8]} 25. Re1 {[%clk 0:01:41.6]}
25... Bd7 {[%clk 0:01:44.4]} 26. Re5 {[%clk 0:01:22.6]} 26... Re8 {[%clk
0:01:40.3]} 27. Rxe8 {[%clk 0:01:17.6]} 27... Bxe8 {[%clk 0:01:41.2]} 28. f3
{[%clk 0:01:16.8]} 28... Bg6 {[%clk 0:01:24.2]} 29. Ne6 {[%clk 0:01:10.5]} 29...
Nxe6 {[%clk 0:01:18.9]} 30. Bxe6 {[%clk 0:01:11.4]} 30... b6 {[%clk 0:01:18]}
31. c5 {[%clk 0:01:05.5]} 31... bxc5 {[%clk 0:01:12.5]} 32. b6 {[%clk
0:01:05.6]} 1-0

[Event "Early-Titled-Tuesday-Blitz-April-23-2024"]
[Site "Chess.com"]
[Date "2024.04.23"]
[Round "2"]
[White "Stanbad1"]
[Black "Anton_Demchenko"]
[Result "0-1"]
[WhiteElo "2636"]
[BlackElo "2972"]
[TimeControl "180+1"]
[EndTime "8:15:46 PDT"]
[Termination "Anton_Demchenko won by resignation"]

1. d4 {[%clk 0:03:00.9]} 1... Nf6 {[%clk 0:03:00.1]} 2. Bg5 {[%clk 0:02:59.8]}
2... g6 {[%clk 0:02:59.8]} 3. Bxf6 {[%clk 0:02:59.1]} 3... exf6 {[%clk
0:03:00.7]} 4. c4 {[%clk 0:02:59.3]} 4... d5 {[%clk 0:03:01.3]} 5. e3 {[%clk
0:02:57.5]} 5... dxc4 {[%clk 0:02:59.2]} 6. Bxc4 {[%clk 0:02:57.1]} 6... Bd6
{[%clk 0:02:59.9]} 7. Nc3 {[%clk 0:02:56.7]} 7... c6 {[%clk 0:02:59.1]} 8. Nge2
{[%clk 0:02:53.6]} 8... Nd7 {[%clk 0:02:53.6]} 9. Qc2 {[%clk 0:02:52.6]} 9... f5
{[%clk 0:02:50.4]} 10. h4 {[%clk 0:02:52.3]} 10... h5 {[%clk 0:02:47.6]} 11.
O-O-O {[%clk 0:02:52]} 11... Qe7 {[%clk 0:02:46.5]} 12. Kb1 {[%clk 0:02:49.7]}
12... Nf6 {[%clk 0:02:46.9]} 13. d5 {[%clk 0:02:48.1]} 13... c5 {[%clk
0:02:44.8]} 14. Nf4 {[%clk 0:02:43.4]} 14... a6 {[%clk 0:02:42.7]} 15. a4 {[%clk
0:02:41.2]} 15... O-O {[%clk 0:02:35]} 16. g3 {[%clk 0:02:40.6]} 16... Bd7
{[%clk 0:02:33.7]} 17. Rhe1 {[%clk 0:02:31.8]} 17... b5 {[%clk 0:02:29.2]} 18.
axb5 {[%clk 0:02:29.4]} 18... axb5 {[%clk 0:02:29.9]} 19. Nxb5 {[%clk
0:02:29.8]} 19... Bxb5 {[%clk 0:02:28.5]} 20. Bxb5 {[%clk 0:02:29.7]} 20... Qa7
{[%clk 0:02:07.2]} 21. Qb3 {[%clk 0:02:21.8]} 21... Rfb8 {[%clk 0:02:04.3]} 22.
Ne2 {[%clk 0:02:12.6]} 22... Ne4 {[%clk 0:01:38]} 23. f3 {[%clk 0:02:09.9]}
23... c4 {[%clk 0:01:02.3]} 24. Qxc4 {[%clk 0:02:03.6]} 24... Rxb5 {[%clk
0:01:02.7]} 25. Qxb5 {[%clk 0:01:59.7]} 25... Qa2+ {[%clk 0:01:03.4]} 26. Kc2
{[%clk 0:01:53.3]} 26... Rc8+ {[%clk 0:01:03.9]} 27. Kd3 {[%clk 0:01:53.3]}
27... Nc5+ {[%clk 0:00:48]} 28. Kd2 {[%clk 0:01:52.5]} 28... Nb3+ {[%clk
0:00:46.7]} 29. Kd3 {[%clk 0:01:52.5]} 29... Qxb2 {[%clk 0:00:43.9]} 30. Qc6
{[%clk 0:01:38.3]} 30... Nc5+ {[%clk 0:00:35.8]} 31. Kc4 {[%clk 0:01:36.6]}
31... Qb3+ {[%clk 0:00:31.2]} 0-1

[Event "Early-Titled-Tuesday-Blitz-April-23-2024"]
[Site "Chess.com"]
[Date "2024.04.23"]
[Round "2"]
[White "blitzking1729"]
[Black "LionelMessiFCB"]
[Result "1-0"]
[WhiteElo "2765"]
[BlackElo "2475"]
[TimeControl "180+1"]
[EndTime "8:15:52 PDT"]
[Termination "blitzking1729 won by resignation"]

1. e4 {[%clk 0:03:00.9]} 1... c5 {[%clk 0:02:58.2]} 2. Nf3 {[%clk 0:03:00.5]}
2... d6 {[%clk 0:02:57.8]} 3. b4 {[%clk 0:03:00.2]} 3... cxb4 {[%clk 0:02:56]}
4. a3 {[%clk 0:03:00.1]} 4... Qa5 {[%clk 0:02:55.1]} 5. Bb2 {[%clk 0:02:59]}
5... bxa3 {[%clk 0:02:49.6]} 6. Nxa3 {[%clk 0:02:58.6]} 6... Bd7 {[%clk
0:02:42]} 7. Nb5 {[%clk 0:02:19.8]} 7... Qd8 {[%clk 0:02:36.4]} 8. Nxa7 {[%clk
0:02:07.9]} 8... Nf6 {[%clk 0:02:30.9]} 9. e5 {[%clk 0:02:03.6]} 9... dxe5
{[%clk 0:02:30]} 10. Nxe5 {[%clk 0:02:03]} 10... Qb6 {[%clk 0:02:18]} 11. Nxd7
{[%clk 0:02:00.3]} 11... Nfxd7 {[%clk 0:02:08.7]} 12. Nb5 {[%clk 0:01:58.6]}
12... Rxa1 {[%clk 0:02:01.1]} 13. Qxa1 {[%clk 0:01:59.5]} 13... f6 {[%clk
0:01:48]} 14. Be2 {[%clk 0:01:50.3]} 14... e5 {[%clk 0:01:47.2]} 15. O-O {[%clk
0:01:49.6]} 15... Bc5 {[%clk 0:01:46.6]} 16. Qa2 {[%clk 0:01:46.4]} 16... Nc6
{[%clk 0:01:38.7]} 17. Kh1 {[%clk 0:01:19.5]} 17... Ke7 {[%clk 0:01:28.3]} 18.
f4 {[%clk 0:01:16.6]} 18... Nd4 {[%clk 0:01:16.3]} 19. Nxd4 {[%clk 0:01:08.9]}
19... Bxd4 {[%clk 0:01:13.6]} 20. c3 {[%clk 0:01:06.7]} 20... Bc5 {[%clk
0:01:06.5]} 21. fxe5 {[%clk 0:01:05.7]} 21... Re8 {[%clk 0:00:56.7]} 22. d4
{[%clk 0:01:03.2]} 1-0

[Event "Early-Titled-Tuesday-Blitz-April-23-2024"]
[Site "Chess.com"]
[Date "2024.04.23"]
[Round "2"]
[White "ELPRIMO0O0"]
[Black "xxysoul6"]
[Result "0-1"]
[WhiteElo "2640"]
[BlackElo "3005"]
[TimeControl "180+1"]
[EndTime "8:15:57 PDT"]
[Termination "xxysoul6 won by resignation"]

1. e4 {[%clk 0:03:00.9]} 1... c5 {[%clk 0:02:58]} 2. d3 {[%clk 0:02:59.7]} 2...
Nc6 {[%clk 0:02:56.5]} 3. g3 {[%clk 0:03:00.2]} 3... g6 {[%clk 0:02:54.7]} 4.
Bg2 {[%clk 0:03:00.6]} 4... Bg7 {[%clk 0:02:54.8]} 5. f4 {[%clk 0:03:01.5]} 5...
e6 {[%clk 0:02:53.8]} 6. Nf3 {[%clk 0:03:02.1]} 6... Nge7 {[%clk 0:02:53.3]} 7.
O-O {[%clk 0:03:02.7]} 7... O-O {[%clk 0:02:53.5]} 8. c3 {[%clk 0:03:03.4]} 8...
b5 {[%clk 0:02:52.4]} 9. Be3 {[%clk 0:03:02.7]} 9... d6 {[%clk 0:02:52.3]} 10.
d4 {[%clk 0:03:02.4]} 10... cxd4 {[%clk 0:02:46.7]} 11. cxd4 {[%clk 0:03:03.3]}
11... Bb7 {[%clk 0:02:46.7]} 12. Nc3 {[%clk 0:03:00.9]} 12... Na5 {[%clk
0:02:43.9]} 13. Bf2 {[%clk 0:02:47.8]} 13... b4 {[%clk 0:02:43.2]} 14. Ne2
{[%clk 0:02:39.4]} 14... Bxe4 {[%clk 0:02:43.2]} 15. g4 {[%clk 0:02:35.6]} 15...
Nd5 {[%clk 0:02:25.9]} 16. Ng3 {[%clk 0:02:34]} 16... Bxf3 {[%clk 0:02:25.3]}
17. Qxf3 {[%clk 0:02:34.9]} 17... Nc4 {[%clk 0:02:24.2]} 18. Qe2 {[%clk
0:02:35.3]} 18... Rc8 {[%clk 0:02:20.3]} 19. f5 {[%clk 0:02:33.6]} 19... Nf4
{[%clk 0:02:17.2]} 20. Qe4 {[%clk 0:02:19]} 20... Nxg2 {[%clk 0:02:16]} 21. Qxg2
{[%clk 0:02:19.9]} 21... exf5 {[%clk 0:02:13.5]} 22. gxf5 {[%clk 0:02:19.5]}
22... Nxb2 {[%clk 0:02:13.6]} 23. Ne4 {[%clk 0:02:15.4]} 23... Rc2 {[%clk
0:02:06.6]} 24. Qg4 {[%clk 0:02:10.6]} 24... d5 {[%clk 0:01:58.4]} 25. Bh4
{[%clk 0:02:03.3]} 25... Qb6 {[%clk 0:01:48.4]} 26. fxg6 {[%clk 0:01:52.6]}
26... Qxd4+ {[%clk 0:01:42.8]} 27. Rf2 {[%clk 0:01:30]} 27... hxg6 {[%clk
0:01:19.6]} 28. Kh1 {[%clk 0:01:01.5]} 28... Nd3 {[%clk 0:01:07.8]} 29. Rxc2
{[%clk 0:00:59]} 29... Qxa1+ {[%clk 0:01:06.4]} 0-1

[Event "Early-Titled-Tuesday-Blitz-April-23-2024"]
[Site "Chess.com"]
[Date "2024.04.23"]
[Round "2"]
[White "GelmanAlexander"]
[Black "leoduarte"]
[Result "1-0"]
[WhiteElo "2656"]
[BlackElo "2380"]
[TimeControl "180+1"]
[EndTime "8:15:59 PDT"]
[Termination "GelmanAlexander won on time"]

1. d4 {[%clk 0:03:00.9]} 1... d5 {[%clk 0:02:58.2]} 2. Nc3 {[%clk 0:03:00.6]}
2... Nf6 {[%clk 0:02:55.9]} 3. Bf4 {[%clk 0:03:00.4]} 3... a6 {[%clk 0:02:55.2]}
4. e3 {[%clk 0:03:00.4]} 4... e6 {[%clk 0:02:52]} 5. g4 {[%clk 0:03:00.1]} 5...
c5 {[%clk 0:02:48.5]} 6. g5 {[%clk 0:03:00.1]} 6... Nfd7 {[%clk 0:02:42.2]} 7.
h4 {[%clk 0:02:59.7]} 7... Nc6 {[%clk 0:02:32.1]} 8. Nf3 {[%clk 0:02:59.7]} 8...
b5 {[%clk 0:02:23.1]} 9. Bh3 {[%clk 0:02:59.4]} 9... Nb6 {[%clk 0:02:18.4]} 10.
h5 {[%clk 0:02:55.6]} 10... Bd6 {[%clk 0:02:08.4]} 11. Ne2 {[%clk 0:02:49.4]}
11... Qc7 {[%clk 0:01:37.6]} 12. dxc5 {[%clk 0:02:42.5]} 12... Bxf4 {[%clk
0:01:15.6]} 13. cxb6 {[%clk 0:02:39]} 13... Qxb6 {[%clk 0:01:12.4]} 14. Nxf4
{[%clk 0:02:35]} 14... Bb7 {[%clk 0:01:09.9]} 15. g6 {[%clk 0:02:30.6]} 15...
hxg6 {[%clk 0:01:05.4]} 16. hxg6 {[%clk 0:02:30.2]} 16... O-O-O {[%clk
0:00:58.6]} 17. gxf7 {[%clk 0:02:29.4]} 17... Ne7 {[%clk 0:00:40.8]} 18. Qd4
{[%clk 0:02:23.2]} 18... Qa5+ {[%clk 0:00:34.2]} 19. c3 {[%clk 0:02:19.5]} 19...
Nf5 {[%clk 0:00:26.8]} 20. Qc5+ {[%clk 0:02:10.7]} 20... Kb8 {[%clk 0:00:22.3]}
21. Ke2 {[%clk 0:02:09.2]} 21... Rc8 {[%clk 0:00:16.7]} 22. Qb4 {[%clk 0:01:56]}
22... Qxb4 {[%clk 0:00:13]} 23. cxb4 {[%clk 0:01:56.9]} 23... Rc2+ {[%clk
0:00:10.4]} 24. Kd3 {[%clk 0:01:54.1]} 24... Rhc8 {[%clk 0:00:07.4]} 25. Bxf5
{[%clk 0:01:50.3]} 25... exf5 {[%clk 0:00:07.2]} 26. Nd4 {[%clk 0:01:44]} 26...
R2c4 {[%clk 0:00:03.6]} 27. Nfe6 {[%clk 0:01:42.8]} 1-0

[Event "Early-Titled-Tuesday-Blitz-April-23-2024"]
[Site "Chess.com"]
[Date "2024.04.23"]
[Round "2"]
[White "ozates"]
[Black "Fjal"]
[Result "1-0"]
[WhiteElo "2558"]
[BlackElo "2334"]
[TimeControl "180+1"]
[EndTime "8:16:03 PDT"]
[Termination "ozates won by resignation"]

1. e4 {[%clk 0:03:00.9]} 1... d6 {[%clk 0:02:54.6]} 2. d4 {[%clk 0:02:58.2]}
2... g6 {[%clk 0:02:54]} 3. Nc3 {[%clk 0:02:58.4]} 3... Bg7 {[%clk 0:02:54.1]}
4. Be3 {[%clk 0:02:58.7]} 4... c6 {[%clk 0:02:53.5]} 5. h4 {[%clk 0:02:58.9]}
5... h5 {[%clk 0:02:52.6]} 6. Nh3 {[%clk 0:02:56.8]} 6... Bxh3 {[%clk
0:02:48.1]} 7. Rxh3 {[%clk 0:02:55.1]} 7... Qb6 {[%clk 0:02:48.4]} 8. Qd2 {[%clk
0:02:47.5]} 8... Nd7 {[%clk 0:02:46.4]} 9. O-O-O {[%clk 0:02:47.2]} 9... Qa5
{[%clk 0:02:46.4]} 10. f4 {[%clk 0:02:45.6]} 10... b5 {[%clk 0:02:45.5]} 11. Kb1
{[%clk 0:02:43.8]} 11... Ngf6 {[%clk 0:02:44.4]} 12. e5 {[%clk 0:02:44]} 12...
Ng4 {[%clk 0:02:40.9]} 13. Bg1 {[%clk 0:02:41.2]} 13... b4 {[%clk 0:02:25.8]}
14. Ne4 {[%clk 0:02:37.7]} 14... d5 {[%clk 0:02:25.8]} 15. Ng5 {[%clk
0:02:29.1]} 15... e6 {[%clk 0:02:25]} 16. Rb3 {[%clk 0:02:20.7]} 16... Rb8
{[%clk 0:02:22]} 17. a3 {[%clk 0:02:16.6]} 17... Bf8 {[%clk 0:02:02]} 18. Bd3
{[%clk 0:02:12.5]} 18... c5 {[%clk 0:01:32.3]} 19. dxc5 {[%clk 0:02:05.3]} 19...
Nxc5 {[%clk 0:01:21.8]} 20. Bxc5 {[%clk 0:02:04.8]} 20... Bxc5 {[%clk
0:01:22.7]} 21. Bxg6 {[%clk 0:01:59.9]} 21... fxg6 {[%clk 0:01:17.6]} 22. Nxe6
{[%clk 0:01:59.2]} 22... Ne3 {[%clk 0:00:51.6]} 23. Nxc5 {[%clk 0:01:43.3]}
23... Qxc5 {[%clk 0:00:49.6]} 24. Qxe3 {[%clk 0:01:42.1]} 24... Qxe3 {[%clk
0:00:47]} 25. Rxe3 {[%clk 0:01:43]} 25... bxa3 {[%clk 0:00:47.7]} 26. Rxa3
{[%clk 0:01:43.9]} 26... Rh7 {[%clk 0:00:47.7]} 27. Rxd5 {[%clk 0:01:42.5]}
27... Rhb7 {[%clk 0:00:47.9]} 28. b3 {[%clk 0:01:41.5]} 28... Ke7 {[%clk
0:00:45.9]} 29. Ra6 {[%clk 0:01:39.7]} 29... Rb6 {[%clk 0:00:45.3]} 30. Rxa7+
{[%clk 0:01:37.3]} 30... Ke6 {[%clk 0:00:44.2]} 31. Rad7 {[%clk 0:01:37.5]}
31... Kf5 {[%clk 0:00:43.9]} 32. g3 {[%clk 0:01:37]} 32... Kg4 {[%clk
0:00:36.7]} 33. R7d6 {[%clk 0:01:34.2]} 33... Kf3 {[%clk 0:00:35.9]} 34. Rxb6
{[%clk 0:01:23.7]} 1-0